bitfinex-derivatives/quotes_BTCF0:USTF0_20251202
["timestamp","ask_amount","ask_price","bid_price","bid_amount"]
[1764705071915,0.00116294,92101.0,92100.0,1.74134]
[1764705073128,0.00116294,92101.0,92100.0,1.41564685]
[1764705073313,0.0108541,92114.0,92113.0,0.0108542]
[1764705073516,0.0840641,92114.0,92113.0,0.97653003]
[1764705073711,0.02255,92115.0,92113.0,1.8318312]
[1764705073915,0.07321,92114.0,92113.0,0.97653003]
[1764705074322,0.0840641,92114.0,92113.0,0.97653003]
[1764705074528,0.0850641,92114.0,92113.0,0.97753003]
[1764705075519,0.0850641,92114.0,92113.0,0.96667583]
[1764705075730,0.0850641,92114.0,92113.0,0.9081]
[1764705076027,0.0850641,92114.0,92113.0,0.92573361]
[1764705076228,0.0850641,92114.0,92113.0,0.92061]
[1764705076425,0.0850641,92114.0,92113.0,0.40085398]
[1764705076620,0.4550641,92114.0,92113.0,0.001]
[1764705077018,1.1650641,92114.0,92113.0,0.02929231]
[1764705077232,1.1650641,92114.0,92087.0,0.07809682]
[1764705077233,0.07321,92085.0,92084.0,0.41937583]
[1764705077432,0.07321,92079.0,92078.0,0.56345583]
[1764705077726,0.0840682,92079.0,92078.0,0.50488]
[1764705077915,0.084069,92072.0,92071.0,0.0806454]
[1764705078227,0.084069,92072.0,92071.0,0.07]
[1764705079129,0.02255,92076.0,92063.0,0.4308]
[1764705079130,0.08407,92064.0,92063.0,0.4308]
[1764705079323,0.09576,92064.0,92063.0,0.4308]
[1764705079723,0.07321,92064.0,92063.0,0.4308]
[1764705080024,0.07321,92064.0,92063.0,0.4508]
[1764705080524,0.03665,92064.0,92063.0,0.4508]
[1764705080723,0.02255,92076.0,92074.0,0.0108587]
[1764705080930,0.07321,92076.0,92075.0,0.07]
[1764705081529,0.07321,92076.0,92075.0,0.4308]
[1764705081724,0.0840686,92076.0,92075.0,0.4308]
[1764705081925,0.0840686,92076.0,92075.0,0.3608]
[1764705082524,0.0840686,92076.0,92070.0,0.50492]
[1764705082525,0.1066192,92071.0,92070.0,0.50492]
[1764705082718,0.10662,92064.0,92063.0,0.3628]
[1764705083225,0.10662,92064.0,92063.0,0.03593]
[1764705083623,0.07321,92063.0,92051.0,0.0108614]
[1764705083829,0.07321,92063.0,92062.0,0.42016284]
[1764705084821,0.07321,92063.0,92062.0,0.42216284]
[1764705085729,0.07321,92075.0,92074.0,0.07]
[1764705085934,0.19321,92075.0,92074.0,0.07]
[1764705086232,0.2040687,92075.0,92074.0,0.03393]
[1764705086427,0.4740687,92075.0,92074.0,0.03393]
[1764705086732,0.07321,92065.0,92064.0,0.03416]
[1764705086936,0.07321,92065.0,92064.0,0.10416]
[1764705088137,0.07321,92065.0,92064.0,0.10616]
[1764705088435,0.07321,92065.0,92064.0,0.072]
[1764705089523,0.07321,92065.0,92064.0,0.0953]
[1764705090326,0.07321,92065.0,92064.0,0.072]
[1764705090530,0.4448686,92076.0,92075.0,0.07]
[1764705090730,0.0840686,92076.0,92075.0,0.07]
[1764705091632,0.0840686,92076.0,92075.0,0.0808587]
[1764705091836,0.0840686,92076.0,92075.0,0.0818587]
[1764705092427,0.07321,92076.0,92075.0,0.0818587]
[1764705092627,0.16091938,92100.0,92080.0,0.0808581]
[1764705092628,0.03681284,92081.0,92080.0,0.0808581]
[1764705092836,0.00016284,92081.0,92080.0,0.4416581]
[1764705093539,0.00016284,92081.0,92080.0,0.8216581]
[1764705093845,0.18595284,92081.0,92080.0,0.6316581]
[1764705094527,0.18595284,92081.0,92080.0,0.8316581]
[1764705094929,0.18495284,92081.0,92080.0,0.8326581]
[1764705095636,0.19581084,92081.0,92080.0,0.4318]
[1764705095842,0.19581084,92081.0,92080.0,0.18016]
[1764705096439,0.1956488,92074.0,92073.0,0.6842]
[1764705097544,0.1956488,92074.0,92073.0,0.6852]
[1764705097938,0.18479,92074.0,92073.0,0.6852]
[1764705098438,0.18479,92074.0,92073.0,1.0952]
[1764705098627,0.18479,92074.0,92073.0,0.6852]
[1764705099435,0.1037485,92077.0,92076.0,0.08739]
[1764705099642,0.09289,92077.0,92076.0,0.53916]
[1764705099842,0.1037482,92080.0,92079.0,0.17638]
[1764705100146,0.1883282,92080.0,92079.0,0.17638]
[1764705100746,0.17747,92080.0,92079.0,0.17638]
[1764705101057,0.17747,92080.0,92079.0,0.53718]
[1764705101340,0.00016284,92081.0,92080.0,0.1886681]
[1764705101551,0.00016284,92081.0,92080.0,0.5786681]
[1764705101733,0.08529284,92081.0,92080.0,0.5786681]
[1764705101934,0.08529284,92081.0,92080.0,0.2186681]
[1764705102134,0.16987284,92081.0,92080.0,0.2186681]
[1764705102834,0.16987284,92081.0,92080.0,0.17781]
[1764705103041,0.17087284,92081.0,92080.0,0.08882]
[1764705104147,0.1805681,92080.0,92079.0,0.3716582]
[1764705104333,0.1805681,92080.0,92079.0,0.53861]
[1764705108451,0.00016284,92081.0,92080.0,0.1886681]
[1764705108644,0.00016284,92081.0,92080.0,0.5886681]
[1764705109546,0.25078632,92106.0,92105.0,0.17781]
[1764705109857,0.19226,92106.0,92105.0,0.17781]
[1764705110239,0.203115,92106.0,92105.0,0.17781]
[1764705111151,0.205115,92106.0,92105.0,0.17781]
[1764705111543,0.182565,92106.0,92105.0,0.17781]
[1764705112143,0.183565,92106.0,92105.0,0.18281]
[1764705114948,0.613565,92106.0,92105.0,0.18281]
[1764705115345,0.183565,92106.0,92105.0,0.18281]
[1764705115549,0.183565,92106.0,92105.0,0.57281]
[1764705115747,0.183565,92106.0,92105.0,0.28281]
[1764705116155,0.183565,92106.0,92105.0,0.18281]
[1764705116543,0.234755,92106.0,92105.0,0.18281]
[1764705118350,0.654755,92106.0,92105.0,0.005]
[1764705118566,0.654755,92106.0,92096.0,0.00016293]
[1764705118567,0.1805661,92097.0,92096.0,0.00016293]
[1764705118852,0.8405661,92097.0,92096.0,0.00016293]
[1764705119060,0.6705661,92097.0,92096.0,0.00016293]
[1764705119239,0.5405661,92097.0,92096.0,0.00016293]
[1764705119441,0.9013661,92097.0,92096.0,0.00016293]
[1764705119648,0.180568,92081.0,92080.0,0.17781]
[1764705120549,0.16971,92079.0,92078.0,0.3608]
[1764705120755,0.16971,92079.0,92078.0,0.53861]
[1764705121555,0.16971,92079.0,92078.0,0.3608]
[1764705121940,0.16971,92079.0,92078.0,0.44962]
[1764705122267,0.16971,92079.0,92078.0,0.17781]
[1764705122464,0.17171,92079.0,92078.0,0.17881]
[1764705123154,0.17171,92079.0,92078.0,0.001]
[1764705123956,0.17171,92079.0,92078.0,0.08481]
[1764705124152,0.93251,92079.0,92078.0,0.001]
[1764705125250,0.16268,92072.0,92071.0,0.08397293]
[1764705125447,0.173539,92072.0,92071.0,0.17005293]
[1764705127056,0.175539,92072.0,92071.0,0.17105293]
[1764705131356,0.16468,92072.0,92071.0,0.17105293]
[1764705131556,0.08137,92072.0,92071.0,0.17005293]
[1764705131760,0.16468,92072.0,92071.0,0.17005293]
[1764705133856,0.08137,92072.0,92071.0,0.17005293]
[1764705134153,0.16468,92072.0,92071.0,0.17005293]
[1764705137956,0.002,92072.0,92071.0,0.22192293]
[1764705138175,0.002,92072.0,92071.0,0.61192293]
[1764705139149,0.08137,92072.0,92071.0,0.30192293]
[1764705139653,0.16468,92072.0,92071.0,0.17005293]
[1764705141651,0.16468,92072.0,92071.0,0.22192293]
[1764705142057,0.002,92072.0,92071.0,0.22192293]
[1764705143268,0.16468,92072.0,92071.0,0.22192293]
[1764705144066,0.16468,92072.0,92071.0,0.17005293]
[1764705150459,0.08137,92072.0,92071.0,0.17005293]
[1764705151466,0.002,92072.0,92071.0,0.17005293]
[1764705152568,0.002,92072.0,92071.0,0.63005293]
[1764705152973,0.002,92072.0,92071.0,0.53005293]
[1764705154675,0.168149,92072.0,92071.0,0.67509293]
[1764705164482,0.08137,92072.0,92071.0,0.67509293]
[1764705164978,0.15729,92072.0,92071.0,0.15446293]
[1764705169781,0.002,92072.0,92071.0,0.15446293]
[1764705170793,0.15049,92072.0,92071.0,0.16532213]
[1764705172087,0.07457,92072.0,92071.0,0.16532213]
[1764705174187,0.002,92072.0,92071.0,0.16532213]
[1764705175586,0.012859,92072.0,92071.0,0.16532213]
[1764705179698,0.012859,92072.0,92071.0,0.20438523]
[1764705180299,0.085429,92072.0,92071.0,0.20438523]
[1764705180498,0.07457,92072.0,92071.0,0.20438523]
[1764705180689,0.15049,92072.0,92071.0,0.15446293]
[1764705182497,0.15049,92072.0,92071.0,0.00016293]
[1764705183699,0.1442203,92061.0,92059.0,0.02929771]
[1764705183899,0.1442212,92054.0,92053.0,0.13914]
[1764705185687,0.1452212,92054.0,92053.0,0.13914]
[1764705190894,0.1462212,92054.0,92053.0,0.13914]
[1764705192411,0.1452212,92054.0,92053.0,0.13914]
[1764705192804,0.1462212,92054.0,92053.0,0.13914]
[1764705193105,0.13536,92054.0,92053.0,0.13914]
[1764705193305,0.002,92054.0,92053.0,0.13914]
[1764705194196,0.001,92054.0,92053.0,0.13914]
[1764705194399,0.002,92054.0,92053.0,0.13914]
[1764705196110,0.001,92054.0,92053.0,0.13914]
[1764705196697,0.06796,92054.0,92053.0,0.13914]
[1764705197419,0.13436,92054.0,92053.0,0.13914]
[1764705198500,0.144222,92047.0,92046.0,0.0002716]
[1764705198711,0.144222,92047.0,92046.0,0.1394116]
[1764705200597,0.145222,92047.0,92046.0,0.1394116]
[1764705200804,0.285222,92047.0,92046.0,0.0002716]
[1764705201008,0.1442234,92035.0,92034.0,0.00012407]
[1764705201312,0.5050234,92035.0,92034.0,0.00012407]
[1764705201907,0.1442251,92021.0,92020.0,0.49994]
[1764705202114,0.13336,92021.0,92020.0,0.49994]
[1764705202916,0.13344933,92021.0,92020.0,0.49994]
[1764705204405,0.13444933,92021.0,92020.0,0.49994]
[1764705204615,0.13444933,92021.0,92020.0,0.3608]
[1764705205319,0.1442268,92006.0,92005.0,0.49994]
[1764705205508,0.1442268,92006.0,92005.0,0.13914]
[1764705205811,0.1442262,92012.0,92011.0,0.13914]
[1764705206213,0.13336,92012.0,92011.0,0.1500062]
[1764705206411,0.13336,92012.0,92011.0,0.13914]
[1764705207715,0.13436,92012.0,92011.0,0.13914]
[1764705210615,0.06796,92012.0,92011.0,0.13914]
[1764705211018,0.001,92012.0,92011.0,0.13914]
[1764705212924,0.00054722,92012.0,92011.0,0.13914]
[1764705215220,0.06056722,92012.0,92011.0,0.13914]
[1764705215611,0.00054722,92012.0,92011.0,0.13914]
[1764705218714,0.11872722,92012.0,92011.0,0.13914]
[1764705222219,0.11872722,92012.0,92003.0,0.48183]
[1764705222220,0.1290471,92004.0,92003.0,0.48183]
[1764705222821,0.11818,92004.0,92003.0,0.48183]
[1764705223518,0.1290485,91992.0,91991.0,0.12103]
[1764705224115,0.0108685,91992.0,91991.0,0.12103]
[1764705224321,0.00112407,92004.0,91988.0,0.3608]
[1764705224516,0.0708877,91999.0,91997.0,0.0108678]
[1764705224717,0.0708877,91999.0,91998.0,0.12103]
[1764705224911,0.1290477,91999.0,91998.0,0.12103]
[1764705226630,0.0708877,91999.0,91998.0,0.12103]
[1764705227024,0.1300477,91999.0,91998.0,0.12103]
[1764705229317,0.06102,91999.0,91998.0,0.12103]
[1764705229730,0.001,91999.0,91998.0,0.12103]
[1764705230628,0.06102,91999.0,91998.0,0.12103]
[1764705232928,0.11918,91999.0,91998.0,0.12103]
[1764705233428,0.11918,91999.0,91998.0,0.15926]
[1764705234031,0.11918,91999.0,91998.0,0.12103]
[1764705234228,0.11918,91999.0,91998.0,0.1318978]
[1764705234729,0.11918,91999.0,91998.0,0.12103]
[1764705235720,0.11818,91999.0,91998.0,0.12103]
[1764705235924,0.11918,91999.0,91998.0,0.12103]
[1764705236326,0.11818,91999.0,91998.0,0.12103]
[1764705236531,0.11918,91999.0,91998.0,0.12103]
[1764705236733,0.11818,91997.0,91996.0,0.4232]
[1764705236930,0.11818,91997.0,91996.0,0.48183]
[1764705237444,0.11818,91997.0,91996.0,0.12103]
[1764705237634,0.010869,91988.0,91987.0,0.03823]
[1764705237827,0.129049,91988.0,91987.0,0.15926]
[1764705238831,0.129049,91988.0,91987.0,0.1701291]
[1764705239337,0.130049,91988.0,91987.0,0.1701291]
[1764705240236,0.130049,91988.0,91987.0,0.15926]
[1764705240537,0.130049,91988.0,91987.0,0.0624]
[1764705240742,0.1290498,91981.0,91980.0,0.12103]
[1764705240929,0.1290498,91981.0,91976.0,0.02929771]
[1764705240930,0.1290503,91977.0,91976.0,0.12103]
[1764705241130,1.6290503,91977.0,91976.0,0.12103]
[1764705241342,1.7790503,91977.0,91976.0,0.12103]
[1764705241642,1.7790503,91977.0,91972.0,0.06253004]
[1764705241643,0.1677607,91973.0,91972.0,0.06253004]
[1764705241939,0.1677607,91973.0,91972.0,0.12116004]
[1764705243036,0.1687607,91973.0,91972.0,0.12116004]
[1764705244038,0.1300507,91973.0,91972.0,0.12116004]
[1764705245339,0.13013333,91973.0,91972.0,0.00013004]
[1764705245845,0.13013333,91973.0,91972.0,0.05843004]
[1764705246041,0.13013333,91973.0,91972.0,0.11296004]
[1764705258141,0.01195333,91973.0,91972.0,0.11296004]
[1764705258341,0.06782333,91973.0,91972.0,0.11296004]
[1764705258551,0.12427333,91973.0,91972.0,0.11296004]
[1764705260541,0.26427333,91973.0,91972.0,0.00013004]
[1764705260746,0.12427333,91973.0,91972.0,0.00013004]
[1764705261237,0.26427333,91973.0,91972.0,0.00013004]
[1764705261438,0.1231914,91967.0,91966.0,0.00027184]
[1764705262861,0.1241914,91967.0,91966.0,0.00027184]
[1764705264357,0.1241914,91967.0,91966.0,0.11310184]
[1764705267346,0.1241914,91967.0,91966.0,0.00027184]
[1764705267953,0.1241914,91967.0,91966.0,0.11310184]
[1764705268463,0.2741914,91967.0,91966.0,0.00027184]
[1764705268655,0.1241914,91967.0,91966.0,0.00027184]
[1764705269051,0.1241914,91967.0,91966.0,0.05857184]
[1764705269656,0.1231914,91967.0,91966.0,0.05857184]
[1764705269855,0.1251914,91967.0,91966.0,0.05857184]
[1764705270757,0.1251914,91967.0,91966.0,0.11310184]
[1764705271249,0.1231914,91967.0,91966.0,0.11310184]
[1764705271457,0.1241914,91967.0,91966.0,0.11310184]
[1764705272654,0.1251914,91967.0,91966.0,0.11310184]
[1764705273266,0.1261914,91967.0,91966.0,0.11310184]
[1764705274665,0.1251914,91967.0,91966.0,0.11310184]
[1764705274864,0.1261914,91967.0,91966.0,0.11310184]
[1764705275170,0.1251914,91967.0,91966.0,0.11310184]
[1764705275758,0.1241914,91967.0,91966.0,0.11310184]
[1764705275953,0.1251914,91967.0,91966.0,0.11310184]
[1764705276154,0.1251914,91967.0,91966.0,0.00027184]
[1764705276355,0.1251914,91967.0,91966.0,0.05360184]
[1764705277054,0.1241914,91967.0,91966.0,0.10735184]
[1764705277363,0.1251914,91967.0,91966.0,0.10735184]
[1764705277563,0.1261914,91967.0,91966.0,0.10735184]
[1764705279465,0.1261914,91967.0,91966.0,0.05360184]
[1764705279664,0.1261914,91967.0,91966.0,0.00027184]
[1764705280165,0.1261914,91967.0,91966.0,0.05360184]
[1764705280766,0.1251914,91967.0,91966.0,0.10735184]
[1764705280963,0.1261914,91967.0,91966.0,0.10735184]
[1764705282062,0.1251914,91967.0,91966.0,0.10735184]
[1764705283175,0.4151914,91967.0,91966.0,0.10735184]
[1764705283373,0.1251914,91967.0,91966.0,0.05360184]
[1764705283570,0.1251914,91967.0,91966.0,0.00027184]
[1764705283769,0.2551914,91967.0,91966.0,0.00027184]
[1764705284072,0.1251914,91967.0,91966.0,0.00027184]
[1764705284671,0.1251914,91967.0,91966.0,0.10735184]
[1764705287275,0.0128714,91967.0,91966.0,0.10735184]
[1764705288175,0.0128714,91967.0,91966.0,0.13664955]
[1764705288760,0.002,91967.0,91966.0,0.13664955]
[1764705288967,8.263e-05,91973.0,91972.0,0.10708]
[1764705289168,8.263e-05,91973.0,91972.0,0.4787509]
[1764705289567,0.05852632,91987.0,91972.0,0.4787509]
[1764705289568,0.06939552,91987.0,91985.0,0.1179493]
[1764705289771,0.0108692,91987.0,91986.0,0.13733]
[1764705289979,0.10583,91988.0,91987.0,0.10708]
[1764705290686,0.10592337,91988.0,91987.0,0.10708]
[1764705290987,0.10692337,91988.0,91987.0,0.10708]
[1764705291480,0.05313337,91988.0,91987.0,0.10708]
[1764705291879,0.10692337,91988.0,91987.0,0.10708]
[1764705292266,0.10692337,91988.0,91987.0,0.10808]
[1764705292868,0.10592337,91988.0,91987.0,0.10708]
[1764705293072,0.10692337,91988.0,91987.0,0.10808]
[1764705294072,0.10592337,91988.0,91987.0,0.10808]
[1764705294272,0.10692337,91988.0,91987.0,0.10808]
[1764705295578,0.10592337,91988.0,91987.0,0.10808]
[1764705295777,0.48692337,91988.0,91987.0,0.10808]
[1764705295977,0.56692337,91988.0,91987.0,0.001]
[1764705297080,0.10692337,91988.0,91987.0,0.001]
[1764705297285,0.15692337,91988.0,91987.0,0.001]
[1764705299182,0.46692337,91988.0,91987.0,0.001]
[1764705300779,0.10583,91969.0,91968.0,0.10708]
[1764705300984,0.10592031,91969.0,91968.0,0.10708]
[1764705301182,0.11679151,91969.0,91968.0,0.10708]
[1764705301686,0.11679151,91969.0,91968.0,0.13733]
[1764705302077,0.11679151,91969.0,91968.0,0.13833]
[1764705302278,0.11779151,91969.0,91968.0,0.13833]
[1764705302481,0.11779151,91969.0,91968.0,0.10808]
[1764705303169,0.11779151,91969.0,91968.0,0.13926]
[1764705303874,0.00109031,91969.0,91968.0,0.13926]
[1764705304071,0.00109031,91969.0,91968.0,0.1685852]
[1764705304474,0.00109031,91969.0,91968.0,0.1783231]
[1764705304881,0.4553,91989.0,91988.0,0.09627]
[1764705305082,0.40594,91989.0,91988.0,0.09627]
[1764705305282,0.4553,91989.0,91988.0,0.09627]
[1764705305975,0.45538117,91989.0,91988.0,0.09627]
[1764705306286,0.45638117,91989.0,91988.0,0.09627]
[1764705306875,0.00108117,91989.0,91988.0,0.09627]
[1764705307280,0.04622117,91989.0,91988.0,0.09627]
[1764705307984,0.00108117,91989.0,91988.0,0.09627]
[1764705309692,0.00108117,91989.0,91988.0,0.45707]
[1764705312893,0.09558117,91989.0,91988.0,0.45707]
[1764705313079,0.04622117,91989.0,91988.0,0.45707]
[1764705313492,0.09558117,91989.0,91988.0,0.45707]
[1764705314690,0.00108117,91989.0,91988.0,0.45707]
[1764705317987,0.04622117,91989.0,91988.0,0.45707]
[1764705318186,0.00108117,91989.0,91988.0,0.45707]
[1764705318882,0.04622117,91989.0,91988.0,0.45707]
[1764705319289,0.00108117,91989.0,91988.0,0.45707]
[1764705320699,0.04622117,91989.0,91988.0,0.45707]
[1764705320898,0.00108117,91989.0,91988.0,0.45707]
[1764705322091,8.117e-05,91989.0,91988.0,0.45707]
[1764705323790,8.117e-05,91989.0,91988.0,0.45807]
[1764705324186,8.117e-05,91989.0,91988.0,0.45707]
[1764705324401,0.00016303,91990.0,91989.0,0.0108688]
[1764705324697,0.00016303,91990.0,91989.0,0.1071388]
[1764705325793,1.510867,92005.0,92004.0,0.1383171]
[1764705325999,0.1053666,92008.0,92007.0,0.1071367]
[1764705326394,0.4553,92013.0,92012.0,0.1071361]
[1764705326603,1.8608,92013.0,92012.0,0.1071361]
[1764705326987,1.5,92013.0,92012.0,0.1071361]
[1764705327391,1.5,92013.0,92012.0,0.1091361]
[1764705327392,1.501,92013.0,92012.0,0.1091361]
[1764705327992,1.501,92013.0,92012.0,0.09827]
[1764705328496,1.553,92013.0,92012.0,0.002]
[1764705328704,2.323,92013.0,92012.0,0.002]
[1764705328997,1.923,92013.0,92012.0,0.002]
[1764705329696,1.553,92013.0,92012.0,0.002]
[1764705329897,1.893,92013.0,92012.0,0.002]
[1764705330100,1.553,92013.0,92012.0,0.002]
[1764705330299,1.863,92013.0,92012.0,0.002]
[1764705330893,1.503,92013.0,92012.0,0.09827]
[1764705331099,0.003,92013.0,92012.0,0.09827]
[1764705331300,0.04814,92013.0,92012.0,0.09827]
[1764705331502,0.0975,92013.0,92012.0,0.09827]
[1764705331704,0.0965,92013.0,92012.0,0.09627]
[1764705331893,0.0975,92013.0,92012.0,0.09927]
[1764705332294,0.003,92013.0,92012.0,0.09927]
[1764705338313,0.003,92013.0,92012.0,0.1101361]
[1764705340316,0.0443,92013.0,92012.0,0.1101361]
[1764705340917,0.08674,92013.0,92012.0,0.1101361]
[1764705341309,0.003,92013.0,92012.0,0.1101361]
[1764705342715,0.097606,92013.0,92012.0,0.09927]
[1764705343913,0.097606,92013.0,92012.0,0.1101361]
[1764705344114,0.097606,92013.0,92012.0,0.09927]
[1764705345614,0.097606,92013.0,92012.0,0.003]
[1764705345615,0.227606,92013.0,92012.0,0.003]
[1764705345816,0.227606,92013.0,92012.0,0.08384]
[1764705345817,0.097606,92013.0,92012.0,0.08384]
[1764705347817,0.0443,92013.0,92012.0,0.08384]
[1764705348320,0.08674,92013.0,92012.0,0.08384]
[1764705348515,0.13674,92013.0,92012.0,0.04357]
[1764705348717,0.08674,92013.0,92012.0,0.08384]
[1764705351415,0.097606,92013.0,92012.0,0.08384]
[1764705352315,0.097606,92013.0,92012.0,0.0947061]
[1764705352518,0.013866,92013.0,92012.0,0.0947061]
[1764705352816,0.003,92013.0,92012.0,0.0947061]
[1764705353124,0.097606,92013.0,92012.0,0.08384]
[1764705354518,0.08674,92013.0,92012.0,0.08384]
[1764705354835,0.003,92013.0,92012.0,0.08384]
[1764705357029,0.08674,92013.0,92012.0,0.08384]
[1764705357225,0.003,92013.0,92012.0,0.08384]
[1764705358424,0.08674,92013.0,92012.0,0.08384]
[1764705362626,0.13674,92013.0,92012.0,0.08384]
[1764705362936,0.08674,92013.0,92012.0,0.08384]
[1764705363337,0.097606,92013.0,92012.0,0.08384]
[1764705363936,0.097606,92013.0,92012.0,0.0947061]
[1764705364130,0.097606,92013.0,92012.0,0.08384]
[1764705364332,0.097606,92013.0,92012.0,0.0947061]
[1764705364534,0.097606,92013.0,92012.0,0.08384]
[1764705364731,0.147606,92013.0,92012.0,0.08384]
[1764705364926,0.097606,92013.0,92012.0,0.08384]
[1764705372940,0.097606,92013.0,92012.0,0.0947061]
[1764705373336,0.097606,92013.0,92012.0,0.08384]
[1764705376647,0.055166,92013.0,92012.0,0.08384]
[1764705376947,0.003,92013.0,92012.0,0.08384]
[1764705377535,0.003,92013.0,92012.0,0.44464]
[1764705379451,0.00545363,92013.0,92012.0,0.44464]
[1764705379853,0.00545363,92013.0,92012.0,0.47390731]
[1764705381455,0.00545363,92013.0,92012.0,0.44464]
[1764705381650,0.04302363,92013.0,92012.0,0.44464]
[1764705381850,0.08114363,92013.0,92012.0,0.44464]
[1764705385258,0.08114363,92013.0,92012.0,0.08384]
[1764705389354,0.13114363,92013.0,92012.0,0.08384]
[1764705389539,0.08114363,92013.0,92012.0,0.08384]
[1764705389743,0.12114363,92013.0,92012.0,0.08384]
[1764705389953,0.13114363,92013.0,92012.0,0.08384]
[1764705390251,0.08114363,92013.0,92012.0,0.08384]
[1764705391042,0.13114363,92013.0,92012.0,0.08384]
[1764705391249,0.08114363,92013.0,92012.0,0.08384]
[1764705391650,0.08114363,92013.0,92012.0,0.0947061]
[1764705392749,0.00545363,92013.0,92012.0,0.0947061]
[1764705393358,0.04302363,92013.0,92012.0,0.0947061]
[1764705394046,0.00545363,92013.0,92012.0,0.0947061]
[1764705394660,0.07502363,92013.0,92012.0,0.08384]
[1764705395957,0.12502363,92013.0,92012.0,0.08384]
[1764705396147,0.07502363,92013.0,92012.0,0.003]
[1764705396460,0.0804371,92004.0,92003.0,0.00016303]
[1764705396660,1.3563571,92004.0,92003.0,0.00016303]
[1764705396860,1.41479403,92004.0,92003.0,0.00016303]
[1764705397164,1.3563571,92004.0,92003.0,0.00016303]
[1764705397553,1.35881073,92004.0,92003.0,0.00016303]
[1764705398169,1.35981073,92004.0,92003.0,0.00316303]
[1764705398853,0.0804386,91991.0,91990.0,0.11842731]
[1764705399054,0.0804386,91991.0,91990.0,0.08916]
[1764705399349,0.0804386,91991.0,91990.0,0.06909]
[1764705399553,0.08289223,91991.0,91990.0,0.06909]
[1764705399954,0.08389223,91991.0,91990.0,0.06909]
[1764705400565,0.08289223,91991.0,91990.0,0.06909]
[1764705400776,0.08389223,91991.0,91990.0,0.06909]
[1764705402163,0.08489223,91991.0,91990.0,0.06909]
[1764705402666,0.08389223,91991.0,91990.0,0.06909]
[1764705402858,0.08489223,91991.0,91990.0,0.06909]
[1764705403053,0.08389223,91991.0,91990.0,0.06909]
[1764705403273,0.08489223,91991.0,91990.0,0.06909]
[1764705403561,0.13489223,91991.0,91990.0,0.06909]
[1764705403762,0.13389223,91991.0,91990.0,0.06909]
[1764705403958,0.13489223,91991.0,91990.0,0.06909]
[1764705404161,0.08489223,91991.0,91990.0,0.06909]
[1764705404470,0.13489223,91991.0,91990.0,0.06909]
[1764705404658,0.13389223,91991.0,91990.0,0.06909]
[1764705404866,0.13389223,91991.0,91983.0,0.3608]
[1764705404867,0.0804394,91984.0,91983.0,0.06909]
[1764705405054,0.4412394,91984.0,91983.0,0.06909]
[1764705405669,0.44369303,91984.0,91983.0,0.06909]
[1764705406158,0.49569303,91984.0,91983.0,0.06909]
[1764705406680,0.0108705,91975.0,91974.0,0.06909]
[1764705406857,0.0804405,91975.0,91974.0,0.06909]
[1764705407667,0.08289413,91975.0,91974.0,0.06909]
[1764705408273,0.08389413,91975.0,91974.0,0.06909]
[1764705408864,0.08589413,91975.0,91974.0,0.06909]
[1764705409961,0.08689413,91975.0,91974.0,0.06909]
[1764705410270,0.08489413,91975.0,91974.0,0.06909]
[1764705412270,0.01532413,91975.0,91974.0,0.06909]
[1764705412658,0.04927413,91975.0,91974.0,0.06909]
[1764705412859,0.01532413,91975.0,91974.0,0.06909]
[1764705413163,0.08489413,91975.0,91974.0,0.06909]
[1764705413670,0.08389413,91975.0,91974.0,0.06909]
[1764705413969,0.44569413,91975.0,91974.0,0.06909]
[1764705414167,0.48569413,91975.0,91974.0,0.06909]
[1764705414964,0.50620413,91975.0,91974.0,0.06909]
[1764705415166,0.0804414,91967.0,91966.0,0.06936184]
[1764705415576,0.0804414,91967.0,91966.0,0.08023344]
[1764705415872,0.08289503,91967.0,91966.0,0.06936184]
[1764705416864,0.07402363,91967.0,91966.0,0.06936184]
[1764705419878,0.07402363,91967.0,91966.0,0.03596184]
[1764705419879,0.56482363,91967.0,91966.0,0.03596184]
[1764705420072,0.43482363,91967.0,91966.0,0.06936184]
[1764705421474,0.36525363,91967.0,91966.0,0.06936184]
[1764705421676,0.00445363,91967.0,91966.0,0.43016184]
[1764705426184,0.06836363,91967.0,91966.0,0.43016184]
[1764705426883,0.03528363,91967.0,91966.0,0.43016184]
[1764705427283,0.00445363,91967.0,91966.0,0.43016184]
[1764705427483,0.03528363,91967.0,91966.0,0.43016184]
[1764705428884,0.06836363,91967.0,91966.0,0.06936184]
[1764705429883,0.11836363,91967.0,91966.0,0.06936184]
[1764705430181,0.11836363,91967.0,91966.0,0.06300184]
[1764705430782,0.06836363,91967.0,91966.0,0.06300184]
[1764705430986,0.11836363,91967.0,91966.0,0.06300184]
[1764705431988,0.40836363,91967.0,91966.0,0.06300184]
[1764705432388,0.11836363,91967.0,91966.0,0.06300184]
[1764705432983,0.11836363,91967.0,91966.0,0.03176184]
[1764705433190,0.11836363,91967.0,91966.0,0.00027184]
[1764705433685,0.41836363,91967.0,91966.0,0.00027184]
[1764705433989,0.11836363,91967.0,91966.0,0.00027184]
[1764705434180,0.49836363,91967.0,91966.0,0.00027184]
[1764705434376,0.26836363,91967.0,91966.0,0.00027184]
[1764705435292,0.49836363,91967.0,91966.0,0.00027184]
[1764705435992,0.06391,91954.0,91953.0,0.3608]
[1764705436181,0.06391,91954.0,91939.0,0.09201768]
[1764705436182,0.06391,91940.0,91939.0,0.09201768]
[1764705436488,0.06391,91940.0,91939.0,0.06273]
[1764705436683,0.06636363,91940.0,91939.0,0.06273]
[1764705438282,0.06736363,91940.0,91939.0,0.06273]
[1764705438479,0.06391,91936.0,91935.0,0.39339]
[1764705438782,0.06636363,91936.0,91935.0,0.42463]
[1764705439183,0.07723873,91936.0,91935.0,0.42463]
[1764705439391,0.12723873,91936.0,91935.0,0.06383]
[1764705439589,0.07723873,91936.0,91935.0,0.06383]
[1764705439792,0.07823873,91936.0,91935.0,0.06383]
[1764705440104,0.12823873,91936.0,91935.0,0.0011]
[1764705440497,0.12923873,91936.0,91935.0,0.0011]
[1764705440993,0.13023873,91936.0,91935.0,0.0011]
[1764705441396,0.46923873,91936.0,91935.0,0.0011]
[1764705441590,0.47023873,91936.0,91935.0,0.0011]
[1764705442391,0.08023873,91936.0,91935.0,0.0011]